Cogmind - Beta 15 @@@ ROGUE MODE // 2025.06.15 @ 17:53:35 Player: bricksii Result: Destroyed by Y-45 Defender with Heavy Assault Rifle Performance ------------- Evolutions (1) 500 Regions Visited (2) 400 Robots Destroyed (23) 115 Value Destroyed (559) 559 Prototype IDs (4) 80 Alien Tech Used (0) 0 Bonus (0) 0 TOTAL SCORE: 1654 Bonus ------- None Cogmind --------- Core Integrity 0/400 Matter 263/300 Energy 100/100 System Corruption 0% Temperature Cool (12) Movement Core (350) Ox6 Location -9/Materials Parts ------- > --- POWER (1) -------- (None) > --- PROPULSION (3) --- (None) > --- UTILITY (3) ------ Large Storage Unit > --- WEAPON (2) ------- (None) > --- INVENTORY (15) --- Light Ion Engine Light Treads Light Treads Light Treads Aluminum Leg Aluminum Leg Aluminum Leg Medium Storage Unit Small Matter Pod (50) Structural Scanner Seismic Detector Light Armor Plating Particle Gun Assault Rifle Grenade Launcher Peak State ------------ > --- POWER ------------ Light Ion Engine > --- PROPULSION ------- Aluminum Leg Aluminum Leg > --- UTILITY ---------- Heat Sink Medium Storage Unit > --- WEAPON ----------- Particle Gun Particle Gun > --- INVENTORY -------- Light Ion Engine Aluminum Leg Large Storage Unit Structural Scanner Seismic Detector Light EM Pulse Cannon Light EM Pulse Cannon Grenade Launcher [Rating: 10] Favorites ----------- Power Light Ion Engine Engine Light Ion Engine Propulsion Aluminum Leg Treads Light Treads Leg Aluminum Leg Utility Heat Sink Device Heat Sink Storage Large Storage Unit Weapon Particle Gun Energy Gun Particle Gun Energy Cannon Light EM Pulse Cannon Ballistic Gun Light Assault Rifle Launcher Grenade Launcher Build | -11 -10 -9 ------- Run | Yrd Mat Mat Slots Evolved 2 | . . 2 Power . | . . . Propulsion 1 | . . 1 Utility 1 | . . 1 Weapon . | . . . Parts Attached 24 | 5 19 . Power 4 | 1 3 . Engine 4 | 1 3 . Core . | . . . Reactor . | . . . Propulsion 5 | 2 3 . Treads 2 | . 2 . Leg 3 | 2 1 . Wheel . | . . . Hover . | . . . Flight . | . . . Utility 7 | . 7 . Device 5 | . 5 . Storage 2 | . 2 . Processor . | . . . Hackware . | . . . Protection . | . . . Artifact . | . . . Weapon 8 | 2 6 . Energy Gun 4 | 1 3 . Energy Cannon 2 | . 2 . Ballistic Gun 1 | 1 . . Ballistic Cannon . | . . . Launcher 1 | . 1 . Special Weapon . | . . . Impact Weapon . | . . . Slashing Weapon . | . . . Piercing Weapon . | . . . Special Melee Weapon . | . . . Unidentified Prototypes . | . . . Parts Lost 5 | . . 5 Power 1 | . . 1 Propulsion 1 | . . 1 Utility 1 | . . 1 Weapon 2 | . . 2 Highest Loss Streak 5 | . . 5 To Critical Strikes . | . . . Average Backups 7 | . 6 14 Power . | . . 1 Propulsion 2 | . 1 5 Utility 2 | . 2 5 Weapon 2 | . 2 3 Tool/Special . | . . . Unused Backups 10 | . 5 5 Power . | . . . Propulsion 5 | . 3 2 Utility 2 | . . 2 Weapon 3 | . 2 1 Tool/Special . | . . . Average Slot Usage (%) 90 | . 97 63 Engine 13 | . 14 9 Treads 5 | . 2 15 Leg 19 | . 24 . Device 18 | . 20 10 Storage 6 | . 5 11 Energy Gun 11 | . 12 8 Energy Cannon 10 | . 11 9 Launcher 2 | . 3 . Peak Build Rating 10 | 5 10 10 Average Rating 8 | 3 8 8 On Entrance 5 | . 5 10 Naked Turns . | . . . Heaviest Build 31 | 6 31 31 Greatest Support 40 | 20 40 40 Greatest Overweight (x) 8 | . 1 8 Average Overweight (x) . | . . . Largest Inventory Capacity 15 | 5 15 15 Average Capacity 8 | 5 7 15 Most Carried 15 | 3 14 15 Average Carried 7 | . 6 14 Final Capacity 15 | 5 15 15 Final Carried 15 | 2 14 15 Class Distribution -------------------- 100% | Mutant Dominant Class ---------------- Mutant | -10/Materials Mutant | -9/Materials Resources | -11 -10 -9 ----------- Run | Yrd Mat Mat Matter Collected 634 | 245 389 . Remotely . | . . . Salvage Created 559 | 40 519 . Parts 45 | 2 43 . Haulers Intercepted . | . . . Recyclers Shooed . | . . . Parts Field Recycled . | . . . Retrieved Matter . | . . . Parts Self-Destructed . | . . . Prevented . | . . . Kills | -11 -10 -9 ------- Run | Yrd Mat Mat Combat Hostiles Destroyed 17 | 1 16 . Guns 8 | 1 7 . AOE 9 | . 9 . Classes Destroyed 6 | 1 5 . Worker 1 | . 1 . Tunneler 1 | . 1 . Recycler 1 | . 1 . Watcher 3 | . 3 . Swarmer 6 | . 6 . Grunt 11 | 1 10 . Best Kill Streak 6 | 1 6 . Combat Bots Only 5 | 1 5 . Max Kills in Single Turn 3 | 1 3 . Gunslinging . | . . . Exploded 3 | . 3 . Melee . | . . . Uniques/NPCs Destroyed . | . . . Combat | -11 -10 -9 -------- Run | Yrd Mat Mat Hostile Shots Fired 96 | 7 28 61 Missed 21 | 3 7 11 Hits 75 | 4 21 50 Projectile 75 | 4 21 50 AOE 1 | . . 1 Critical Strikes 1 | . . 1 Damage Taken 1295 | 45 413 837 Core 509 | . 95 414 Absorbed by Shields . | . . . Regen/Repaired (Parts) 62 | . 62 . Core Remaining (%) 81 | 100 62 . Volleys Fired 46 | 5 41 . Largest 2 | 2 2 . Hottest 130 | 70 130 . Shots Fired 77 | 10 67 . Gun 47 | 10 37 . Cannon 24 | . 24 . Launcher 6 | . 6 . Special . | . . . Kinetic 5 | 5 . . Thermal 42 | 5 37 . Explosive 6 | . 6 . Electromagnetic 24 | . 24 . Robot Hit Streak 4 | 3 4 . Robot Miss Streak 5 | 1 5 . Penetration Max . | . . . Secondary Targets . | . . . Shots Hit Robots 33 | 7 26 . Core Hits 34 | 2 32 . Critical Kills . | . . . Critical Parts Destroyed . | . . . Critical Strikes 3 | . 3 . Burn 3 | . 3 . Melee Attacks . | . . . Impact . | . . . Slashing . | . . . Piercing . | . . . Sneak Attacks . | . . . Combat Hostiles . | . . . Follow-up Attacks . | . . . Damage Inflicted 1389 | 68 1321 . Guns 310 | 68 242 . Cannons 233 | . 233 . Explosions 831 | . 831 . Melee . | . . . Ramming 15 | . 15 . Kinetic 30 | 30 . . Thermal 383 | 38 345 . Explosive 728 | . 728 . Electromagnetic 233 | . 233 . Impact . | . . . Slashing . | . . . Piercing . | . . . Highest Corruption . | . . . Average Corruption . | . . . Corruption Purged . | . . . Corruption Blocked . | . . . Overload Shots . | . . . Overflow Damage 26 | . 26 . Projectiles 10 | . 10 . Explosions 16 | . 16 . Melee . | . . . Knockbacks . | . . . Impact . | . . . Kinetic . | . . . Secondary . | . . . Self-Inflicted Damage 120 | . 120 . Shots 2 | . 2 . Rammed . | . . . Targets Rammed 2 | . 2 . Kicked 2 | . 2 . Crushed . | . . . Highest Temperature 450 | 94 450 8 Average Temperature 92 | 49 98 8 Received Heat Transfer 357 | 24 123 210 Effects 5 | . 5 . Shutdowns 2 | . 2 . Energy Bleed 1 | . 1 . Matter Decay 1 | . 1 . Damage (minor) 1 | . 1 . Siege Activations . | . . . Martial Activations . | . . . Shielding Activations . | . . . Robots Disrupted . | . . . Combat Hostiles . | . . . Robots Corrupted . | . . . Combat Hostiles . | . . . Parts Fried . | . . . Impact Corruptions . | . . . Robots Melted . | . . . Combat Hostiles . | . . . Parts Melted . | . . . Heat Transferred 1038 | 111 927 . Parts Sabotaged . | . . . Parts Stolen . | . . . Parts Stripped . | . . . Power Chain Reactions 1 | . 1 . Alert | -11 -10 -9 ------- Run | Yrd Mat Mat Maximum Alert Level 1 | . 1 . Low Security (%) 83 | 100 78 100 Level 1 16 | . 21 . Level 2 . | . . . Level 3 . | . . . Level 4 . | . . . Level 5 . | . . . High Security . | . . . Max Security . | . . . Peak Influence 345 | 20 345 131 Initial 131 | . 13 131 Average 117 | 1 140 55 Influence Increases 679 | 20 659 . Destroy 0b10 Robot/C 340 | 20 320 . Destroy 0b10 Robot/NC 35 | . 35 . Destroy Leader 76 | . 76 . Successful Hack 29 | . 29 . Disable Machine 75 | . 75 . Destroy Structure 64 | . 64 . Lose Combat Pursuer 60 | . 60 . Influence Decreases 679 | . 366 313 Entered New Map 189 | . 7 182 Time Decay 480 | . 359 121 Lost Part 10 | . . 10 Squads Dispatched 4 | . 4 . Investigation 3 | . 3 . Extermination . | . . . Reinforcement 1 | . 1 . Assault . | . . . Garrison . | . . . Intercept . | . . . Searches Triggered . | . . . Construction Impeded . | . . . Haulers Reinforced . | . . . Active Scanning Responses . | . . . Cargo Convoy Interrupts . | . . . Stealth | -11 -10 -9 --------- Run | Yrd Mat Mat Distress Signals 3 | . 2 1 Communications Jammed . | . . . Distress Signals . | . . . Times Spotted 33 | 1 29 3 Peak Tracking Total 4 | 1 4 3 Tactical Retreats 3 | . 3 . Traps | -11 -10 -9 ------- Run | Yrd Mat Mat Traps Triggered 2 | . 2 . Indirectly . | . . . Trap Hack Attempts . | . . . Triggered . | . . . Disarmed . | . . . Reprogrammed . | . . . Reused . | . . . Traps Extracted . | . . . Installed . | . . . Triggered . | . . . Machines | -11 -10 -9 ---------- Run | Yrd Mat Mat Machines Disabled 6 | . 6 . Max in Single Turn 2 | . 2 . Machines Repaired . | . . . Machines Dismantled . | . . . Machines Sabotaged . | . . . Overloaded Fab Kills . | . . . Hacking | -11 -10 -9 --------- Run | Yrd Mat Mat Machines Accessed 10 | . 10 . Terminals 7 | . 7 . Fabricators . | . . . Repair Stations 1 | . 1 . Recycling Units 2 | . 2 . Scanalyzers . | . . . Garrison Access . | . . . Total Hacks 34 | . 34 . Successful 21 | . 21 . Failed 13 | . 13 . Catastrophic 1 | . 1 . Database Lockouts . | . . . Manual . | . . . Terminals 24 | . 24 . Fabricators . | . . . Repair Stations 4 | . 4 . Recycling Units 6 | . 6 . Scanalyzers . | . . . Garrison Access . | . . . Terminal Hacks 16 | . 16 . Record 6 | . 6 . Prototype ID Bank 2 | . 2 . Terminal Index 1 | . 1 . Alert Level 2 | . 2 . Locate Traps 1 | . 1 . Maintenance Status 1 | . 1 . Recall Investigation 1 | . 1 . Recall Reinforcements 1 | . 1 . Hauler Manifests 1 | . 1 . Fabricator Hacks . | . . . Repair Station Hacks 2 | . 2 . Scan Component 1 | . 1 . Repair 1 | . 1 . Recycling Unit Hacks 3 | . 3 . Report Inventory 2 | . 2 . Retrieve Components 1 | . 1 . Scanalyzer . | . . . Garrison Access Hacks . | . . . Unauthorized Hacks . | . . . Terminals . | . . . Fabricators . | . . . Repair Stations . | . . . Recycling Units . | . . . Scanalyzers . | . . . Garrison Access . | . . . Data Cores Recovered . | . . . Used . | . . . Hacking Detections 9 | . 9 . Full Trace Events 6 | . 6 . Feedback Events . | . . . Feedback Blocked . | . . . Robot Schematics Acquired . | . . . Robots Built . | . . . Authchips . | . . . Time . | . . . Total Robot Build Rating . | . . . Part Schematics Acquired . | . . . Parts Built . | . . . Authchips . | . . . Time . | . . . Total Part Build Rating . | . . . Parts Repaired 1 | . 1 . Time 26 | . 26 . Parts Recycled . | . . . Recycled Matter . | . . . Retrieved Matter . | . . . Retrieved Components 2 | . 2 . Parts Scanalyzed . | . . . Part Schematics Acquired . | . . . Parts Damaged . | . . . Bothacking | -11 -10 -9 ------------ Run | Yrd Mat Mat Used RIF Installer . | . . . Robots Hacked . | . . . Non-combat . | . . . Combat . | . . . Robot Hacks Applied . | . . . Relay Couplers Released . | . . . Fabnet Peak Effective % . | . . . Robots Rewired . | . . . Allies Hacked . | . . . Hacks Repelled . | . . . Allies | -11 -10 -9 -------- Run | Yrd Mat Mat Total Allies . | . . . Largest Group . | . . . Highest-Rated Group . | . . . Highest-Rated Ally . | . . . Total Orders . | . . . Ally Attacks . | . . . Total Damage . | . . . Kills . | . . . Allies Corrupted . | . . . Allies Melted . | . . . Intel | -11 -10 -9 ------- Run | Yrd Mat Mat Active Infowar (turns) 721 | . 721 . Structural 380 | . 380 . Seismic 721 | . 721 . Robot Analysis Total . | . . . Derelict Logs Recovered . | . . . Drone Launches . | . . . Drone Recoveries . | . . . Exploration | -11 -10 -9 ------------- Run | Yrd Mat Mat Turns Passed 1737 | 88 1319 330 Spaces Moved 1010 | 64 809 137 Core 25 | 20 . 5 Treads 216 | . 84 132 Legs 769 | 44 725 . Wheels . | . . . Hover . | . . . Flight . | . . . Fastest Speed 50 | 50 120 160 Average Speed 132 | 98 124 197 Slowest Speed 450 | 120 190 450 Overloaded Moves . | . . . Propulsion Burnouts . | . . . Robots Hopped . | . . . Potential Cave-ins . | . . . Cave-ins Triggered . | . . . Exploration Rate (%) 32 | 5 88 4 Regions Visited 2 Branch Regions . Pre-discovered Areas . | . . . Known Exits Taken . | . . . Unknown Exits Taken 2 | 1 1 . Scrap Searched . | . . . Spaces Dug . | . . . Terrain Destroyed 70 | . 70 . Melee . | . . . Projectile . | . . . AOE 70 | . 70 . Terrain Rammed . | . . . Walls Destroyed . | . . . Machines Disabled . | . . . Actions | -11 -10 -9 --------- Run | Yrd Mat Mat Total 1328 | 80 1050 198 Wait 187 | . 135 52 Move 1008 | 63 808 137 Hop . | . . . Pick Up 30 | 7 23 . Fast Attach 9 | . 5 4 Attach 7 | 5 2 . Detach 1 | . . 1 Swap 16 | . 16 . Drop 20 | . 16 4 Fire 46 | 5 41 . Melee . | . . . Ram . | . . . Kick 2 | . 2 . Crush . | . . . Escape Stasis . | . . . Rewire 2 | . 2 . Trap . | . . . Miscellaneous . | . . . Route ------- -11/Scrapyard -10/Materials (discovered 3 exits: [*Mat x2] / [*Min]) -9/Materials History --------- Turn | Location | Event 2 | -11/Scrapyard | Met Revision 17 63 | -11/Scrapyard | Discovered new exit (range 8) 89 | -11/Scrapyard | Entered Materials 310 | -10/Materials | Build established: Mutant 415 | -10/Materials | Discovered new exit (range 16) 968 | -10/Materials | Repaired Aluminum Leg 1000 | -10/Materials | Discovered new exit (range 6) 1246 | -10/Materials | Discovered new exit (range 9) 1408 | -10/Materials | Entered another Materials area 1408 | -9/Materials | Evolved 2 slots: Propulsion x1, Utility x1 1730 | -9/Materials | Core integrity fell below 50% 1738 | -9/Materials | Destroyed by Y-45 Defender with Heavy Assault Rifle Last Messages --------------- LOCATION=UNKNOWN GOAL=ESCAPE Dropped Lgt. Treads. Dropped Heat Sink. Dropped Particle Gun. Dropped Lgt. EM Pulse Cannon. Acquired Lgt. EM Pulse Cannon. Acquired Lgt. Treads. Acquired Heat Sink. Acquired Particle Gun. K-01 Serf collects debris. Particle Gun destroyed. Lgt. Ion Engine destroyed. Lgt. EM Pulse Cannon destroyed. Lgt. Treads destroyed. Heat Sink destroyed. Critical hit (Burn: +37). Fusion Modulator explodes. Y-45 Defender destroyed. Electrolysis Chamber disabled. Map ----- +----------------------------------------------------+ | ????????????????????????????????????????????????? | | ????????????????????????????????????????????????? | | ????????????????????????????????????????????????? | | ????????????????????????????????????????????????? | | ????????????????????????????????????????????????? | | ????????????????????????????????????????????????? | | ????????????????????????????????????????????????? | | ????????????????????????????????????????????????? | | ????????????????????????????????????????????????? | | ????????????????????????????????????????????????? | | ????????????????????????????????????????????????? | | ????????????????????????????????????????????????? | | ????????????????????????????????????????????????? | | ????????????????????????????????????????????????? | | ??????????????????????????#######???????????????? | | ????????????############### ########????????? | | ??????? ^ #????????? | | ??????? ^ " ! #????????? | | ??????? ^ #????????? | | ????????########+########## ########????????? | | ?????????????????????####;;;;/#####?????????????? | | ?????????????????????# #; !%Y ! #?????????????? | | ?????????????????????# ; [ #?????????????? | | ?????????????????????# ; #?????????????? | | ?????????????????????## ; #?????????????? | | ?????????????????????# ;@ " #?????????????? | | ?????????????????????## ; " #?????????????? | | ??????????????????????# ; " #?????????????? | | ??????????????????????# ; #?????????????? | | ??????????????????????##;;;;;;;####?????????????? | | ???????????????????????# ###????????????????? | | ???????????????????????#######??????????????????? | | ????????????????????????????????????????????????? | | | | | | | | | | | | | | | | | | | | | | | | | | | | | | | | | | | +----------------------------------------------------+ Best States ------------- Heat Dissipation 38 Energy Generation 10 Energy Capacity 125 Matter Stores 300 Matter Capacity 300 Sight Range 16 Terrain Scan Density 10 Evasion (%) 55 Recoil Reduction 2 Item Schematics ----------------- None Robot Schematics ------------------ None Fabricated ------------ Nothing Repaired ---------- Aluminum Leg | 31% | -10/Materials Alien Tech Used ----------------- None Achievements -------------- Part-time Mechanic Challenges ------------ None Game ------ Seed EfficiencyPotentialCarapace Manual? 0 Play Time 01:51:12 Cumulative 3.2 hours Start 2025.06.14 @ 21:29:08 End 2025.06.15 @ 17:53:35 Sessions 3 Manual Loads 0 Difficulty Rogue Special Mode None Game No. 2 Rogue 2 Adventurer 0 Explorer 0 Win Type - Total 0 Types 0/0/0/0/0/0/0/0/0/0 Lore% 0 Gallery% 2 Achievement% 4 Wizard Run 0 Options --------- Layout 2 ASCII 0 Keyboard 0 Movement Numpad Keybinds 0 Fullscreen 1 Font 16/SmallcapsGlow Map View 50x49 Zoom Use 11% Tactical HUD 0 Map Filters NONE Filters NONE Steam SD RUN: c5b96983-3808-41d0-af42-f3df85f6a2fc